bitfinex/quotes_BTCUSD_20250422
["timestamp","ask_amount","ask_price","bid_price","bid_amount"]
[1745354254755,0.0468,91126.0,91121.0,0.002]
[1745354254958,0.11614346,91125.0,91121.0,0.002]
[1745354255162,0.11614346,91125.0,91121.0,0.001]
[1745354255567,0.11614346,91125.0,91121.0,0.002]
[1745354255978,0.11614346,91125.0,91121.0,0.001]
[1745354256330,0.11614346,91125.0,91121.0,0.002]
[1745354262201,0.11614346,91125.0,91121.0,0.001]
[1745354265248,0.11614346,91125.0,91121.0,0.002]
[1745354268243,0.11375594,91125.0,91121.0,0.002]
[1745354269733,0.0458,91129.0,91121.0,0.002]
[1745354269936,0.11375594,91128.0,91121.0,0.002]
[1745354271124,0.11375594,91128.0,91121.0,0.001]
[1745354271325,0.11375594,91128.0,91121.0,0.002]
[1745354271720,0.11375594,91128.0,91121.0,0.001]
[1745354272174,0.11375594,91128.0,91121.0,0.002]
[1745354273465,0.0458,91129.0,91121.0,0.002]
[1745354274389,0.0458,91129.0,91121.0,0.001]
[1745354274789,0.0458,91129.0,91121.0,0.002]
[1745354284295,8.622e-05,91131.0,91121.0,0.002]
[1745354285084,8.622e-05,91131.0,91121.0,0.001]
[1745354285471,8.622e-05,91131.0,91121.0,0.002]
[1745354295254,8.622e-05,91131.0,91121.0,0.003]
[1745354305865,8.622e-05,91131.0,91121.0,0.001]
[1745354310855,8.622e-05,91131.0,91113.0,0.00022215]
[1745354312371,8.622e-05,91131.0,91120.0,0.25566334]
[1745354313715,8.622e-05,91131.0,91121.0,0.00219464]
[1745354313921,8.622e-05,91131.0,91120.0,0.25566334]
[1745354314666,8.622e-05,91131.0,91120.0,0.25666334]
[1745354318863,8.622e-05,91131.0,91121.0,0.0021946]
[1745354320030,8.622e-05,91131.0,91120.0,0.25566334]
[1745354320233,8.622e-05,91131.0,91121.0,0.001]
[1745354320846,8.622e-05,91131.0,91120.0,0.51132668]
[1745354321163,8.622e-05,91131.0,91120.0,0.51232668]
[1745354321785,8.622e-05,91131.0,91121.0,0.00219458]
[1745354322541,8.622e-05,91131.0,91120.0,0.51232668]
[1745354322964,8.622e-05,91131.0,91120.0,0.51132668]
[1745354323184,8.622e-05,91131.0,91121.0,0.001]
[1745354323685,8.622e-05,91131.0,91120.0,0.51132668]
[1745354324044,8.622e-05,91131.0,91120.0,0.51232668]
[1745354337933,8.622e-05,91131.0,91120.0,0.25666334]
[1745354338699,0.0486,91130.0,91120.0,0.25666334]
[1745354339567,0.0486,91130.0,91120.0,0.25566334]
[1745354339975,0.0486,91130.0,91120.0,0.25666334]
[1745354341794,0.0486,91130.0,91120.0,0.51232668]
[1745354351590,0.0486,91130.0,91120.0,0.001]
[1745354351797,0.0479,91128.0,91120.0,0.25666334]
[1745354352010,0.11614346,91127.0,91120.0,0.25666334]
[1745354352662,0.11614346,91127.0,91120.0,0.25566334]
[1745354352978,0.11614346,91127.0,91120.0,0.25666334]
[1745354353233,0.11375594,91127.0,91120.0,0.25666334]
[1745354353397,0.11375594,91127.0,91120.0,0.25566334]
[1745354353613,0.11375594,91127.0,91120.0,0.25666334]
[1745354353802,0.11614346,91127.0,91120.0,0.25666334]
[1745354354186,0.11375594,91127.0,91120.0,0.25666334]
[1745354354391,0.11614346,91127.0,91120.0,0.25666334]
[1745354354655,0.11375594,91127.0,91120.0,0.25666334]
[1745354354787,0.11614346,91127.0,91120.0,0.25666334]
[1745354354991,0.11375594,91127.0,91120.0,0.25666334]
[1745354355191,0.11614346,91127.0,91120.0,0.0725528]
[1745354355414,0.0479,91128.0,91120.0,0.0725528]
[1745354355661,8.622e-05,91131.0,91120.0,0.0725528]
[1745354355841,0.11375594,91130.0,91120.0,0.0725528]
[1745354356201,0.11375594,91130.0,91120.0,0.001]
[1745354356405,0.00238752,91129.0,91120.0,0.25666334]
[1745354356616,0.11614346,91129.0,91120.0,0.25666334]
[1745354356804,0.11614346,91129.0,91119.0,0.25566334]
[1745354356994,0.11614346,91129.0,91119.0,0.51132668]
[1745354358374,0.11614346,91129.0,91120.0,0.001]
[1745354358679,0.11614346,91129.0,91119.0,0.51132668]
[1745354359080,0.11614346,91129.0,91119.0,0.51332668]
[1745354359240,0.0475,91128.0,91119.0,0.51332668]
[1745354359478,0.00238752,91127.0,91119.0,0.51332668]
[1745354359679,0.0479,91126.0,91119.0,0.51332668]
[1745354360053,0.0479,91126.0,91119.0,0.51132668]
[1745354361506,0.0479,91126.0,91119.0,0.51332668]
[1745354361647,0.16165594,91126.0,91119.0,0.51332668]
[1745354361848,0.00238752,91125.0,91119.0,0.51132668]
[1745354362099,0.00238752,91125.0,91119.0,0.51332668]
[1745354362854,0.00238752,91125.0,91119.0,0.51132668]
[1745354363112,0.00238752,91125.0,91119.0,0.51332668]
[1745354363749,0.00238752,91125.0,91119.0,0.002]
[1745354363750,0.11614346,91125.0,91119.0,0.002]
[1745354363925,0.10994085,91123.0,91119.0,0.002]
[1745354364131,0.10994085,91120.0,91119.0,0.002]
[1745354364342,0.22608431,91120.0,91119.0,0.002]
[1745354365634,0.21154346,91120.0,91119.0,0.002]
[1745354365896,0.21354346,91120.0,91119.0,0.002]
[1745354366104,0.30950346,91120.0,91119.0,0.002]
[1745354366307,0.30711594,91120.0,91119.0,0.002]
[1745354366721,0.30511594,91120.0,91113.0,0.00022215]
[1745354366835,0.11614346,91119.0,91111.0,0.00022215]
[1745354368511,0.11614346,91119.0,91111.0,0.00122215]
[1745354370201,0.11614346,91119.0,91111.0,0.00022215]
[1745354370734,0.11614346,91119.0,91111.0,0.00122215]
[1745354388809,0.11591631,91119.0,91111.0,0.00122215]
[1745354389518,0.09596,91118.0,91111.0,0.00122215]
[1745354389722,0.11568916,91117.0,91111.0,0.00122215]
[1745354390373,0.11568916,91117.0,91111.0,0.00022215]
[1745354390569,0.11568916,91117.0,91111.0,0.00122215]
[1745354390910,0.11568916,91117.0,91111.0,0.00022215]
[1745354392888,0.11568916,91117.0,91111.0,0.00122215]
[1745354393234,0.11568916,91117.0,91111.0,0.00022215]
[1745354393435,0.11568916,91117.0,91111.0,0.00122215]
[1745354394359,0.09588,91116.0,91111.0,0.00122215]
[1745354394619,0.11568916,91115.0,91111.0,0.00122215]
[1745354395850,0.11568916,91115.0,91111.0,0.00022215]
[1745354396047,0.11568916,91115.0,91111.0,0.00122215]
[1745354396432,0.11568916,91115.0,91111.0,0.00022215]
[1745354396773,0.11568916,91115.0,91111.0,0.00122215]
[1745354399197,0.09588,91114.0,91111.0,0.00122215]
[1745354399409,0.11568916,91113.0,91111.0,0.00122215]
[1745354400043,0.11568916,91113.0,91111.0,0.00022215]
[1745354400439,0.11568916,91113.0,91111.0,0.00122215]
[1745354401789,0.11568916,91113.0,91111.0,0.00022215]
[1745354402375,0.11568916,91113.0,91111.0,0.00122215]
[1745354412051,0.11556207,91113.0,91111.0,0.00122215]
[1745354412227,0.09588,91112.0,91111.0,0.00122215]
[1745354412552,0.20963594,91112.0,91111.0,0.00122215]
[1745354413884,0.25713594,91112.0,91111.0,0.00022215]
[1745354414037,0.30363594,91112.0,91111.0,0.00122215]
[1745354422975,0.34854038,91112.0,91111.0,0.00122215]
[1745354423130,0.31817679,91112.0,91111.0,0.00122215]
[1745354423336,0.30363594,91112.0,91111.0,0.00122215]
[1745354423926,0.30463594,91112.0,91111.0,0.00022215]
[1745354424146,0.30363594,91112.0,91111.0,0.00022215]
[1745354424347,0.30463594,91112.0,91111.0,0.00022215]
[1745354425960,0.30563594,91112.0,91111.0,0.00022215]
[1745354426372,0.30463594,91112.0,91111.0,0.00022215]
[1745354426915,0.30563594,91112.0,91111.0,0.00022215]
[1745354429575,0.002,91112.0,91111.0,0.00022215]
[1745354442217,0.002,91112.0,91111.0,0.00241711]
[1745354446188,0.003366,91130.0,91117.0,0.21949783]
[1745354446373,0.1,91126.0,91120.0,0.51132668]
[1745354448363,0.101,91126.0,91120.0,0.51132668]
[1745354448561,0.1,91126.0,91120.0,0.51132668]
[1745354448764,0.101,91126.0,91120.0,0.51132668]
[1745354455834,0.101,91126.0,91121.0,0.00219474]
[1745354456453,0.04439999,91126.0,91125.0,0.21947873]
[1745354456655,0.0461,91146.0,91126.0,0.01097381]
[1745354456856,4.62e-05,91142.0,91132.0,0.51132668]
[1745354457154,0.09572,91149.0,91135.0,0.0489]
[1745354457357,0.09572,91149.0,91137.0,0.51132668]
[1745354458385,0.09572,91149.0,91137.0,0.51932668]
[1745354458594,0.001848,91147.0,91137.0,0.51932668]
[1745354463897,0.001848,91147.0,91137.0,0.73877519]
[1745354464099,0.001848,91147.0,91138.0,0.00219413]
[1745354464796,0.001848,91147.0,91137.0,0.51932668]
[1745354464914,0.000848,91147.0,91137.0,0.51432668]
[1745354465115,0.000848,91147.0,91138.0,0.005]
[1745354465372,0.001848,91147.0,91138.0,0.005]
[1745354465611,0.001848,91147.0,91138.0,0.008]
[1745354465814,0.000848,91147.0,91138.0,0.003]
[1745354466014,0.001848,91147.0,91138.0,0.003]
[1745354467250,0.000848,91147.0,91137.0,0.51132668]
[1745354467447,0.001848,91147.0,91138.0,0.005]
[1745354467835,0.0959,91146.0,91138.0,0.005]
[1745354468047,0.0959,91146.0,91138.0,0.003]
[1745354468255,0.0461,91144.0,91138.0,0.003]
[1745354468459,0.00203328,91143.0,91138.0,0.003]
[1745354469794,0.00203328,91143.0,91132.0,4.62e-05]
[1745354469941,0.00203328,91143.0,91138.0,0.003]
[1745354470148,0.00203328,91143.0,91138.0,0.008]
[1745354470346,0.00203328,91143.0,91138.0,0.005]
[1745354470554,0.00203328,91143.0,91138.0,0.001]
[1745354470769,0.0959,91141.0,91138.0,0.001]
[1745354471115,0.0461,91139.0,91138.0,0.001]
[1745354471258,0.15985594,91139.0,91138.0,0.001]
[1745354471683,0.15985594,91139.0,91138.0,0.005]
[1745354472646,0.15985594,91139.0,91138.0,0.004]
[1745354473105,0.15985594,91139.0,91132.0,4.62e-05]
[1745354473310,0.11578922,91138.0,91132.0,4.62e-05]
[1745354474407,0.11578922,91138.0,91132.0,0.0020462]
[1745354474817,0.11578922,91138.0,91132.0,4.62e-05]
[1745354475019,0.11578922,91138.0,91132.0,0.0010462]
[1745354476813,0.11578922,91138.0,91132.0,4.62e-05]
[1745354477013,0.11578922,91138.0,91132.0,0.0010462]
[1745354477653,0.11578922,91138.0,91132.0,4.62e-05]
[1745354477803,0.11578922,91138.0,91132.0,0.0010462]
[1745354482627,0.11578922,91138.0,91128.0,0.00560325]
[1745354482920,0.1158354,91138.0,91128.0,0.00560325]
[1745354483731,0.1158354,91138.0,91128.0,0.00960325]
[1745354485148,0.1158354,91138.0,91128.0,0.004]
[1745354485546,0.1158354,91138.0,91128.0,0.25966334]
[1745354486355,0.1158354,91138.0,91128.0,0.004]
[1745354490850,0.01454085,91135.0,91128.0,0.004]
[1745354491054,0.01454085,91131.0,91128.0,0.004]
[1745354491261,0.0487,91129.0,91128.0,0.004]
[1745354491480,0.16245594,91129.0,91128.0,0.004]
[1745354492280,0.16448922,91129.0,91128.0,0.004]
[1745354492919,0.16448922,91129.0,91119.0,0.25566334]
[1745354493127,0.11375594,91128.0,91111.0,0.00022215]
[1745354493281,0.00203328,91127.0,91111.0,0.00022215]
[1745354493499,0.11375594,91126.0,91111.0,0.00022215]
[1745354493842,0.00203328,91125.0,91111.0,0.00022215]
[1745354494042,0.11375594,91124.0,91111.0,0.00022215]
[1745354494246,0.00203328,91123.0,91111.0,0.00022215]
[1745354494469,0.00203328,91123.0,91111.0,0.00322215]
[1745354494470,0.11375594,91122.0,91111.0,0.00322215]
[1745354494668,0.00203328,91121.0,91111.0,0.00822215]
[1745354494978,0.11578922,91121.0,91111.0,0.00822215]
[1745354495561,0.11578922,91121.0,91111.0,0.00522215]
[1745354495773,0.11578922,91121.0,91111.0,0.00322215]
[1745354496126,0.11578922,91121.0,91111.0,0.00522215]
[1745354496332,0.11578922,91121.0,91111.0,0.00822215]
[1745354496656,0.11578922,91121.0,91111.0,0.00322215]
[1745354497150,0.11678922,91121.0,91111.0,0.00822215]
[1745354498141,0.11475594,91121.0,91111.0,0.00822215]
[1745354499185,0.00203328,91120.0,91111.0,0.00822215]
[1745354500103,0.00203328,91120.0,91111.0,0.00022215]
[1745354500452,0.00303328,91120.0,91111.0,0.00822215]
[1745354502511,0.001,91120.0,91111.0,0.00822215]
[1745354502710,0.00303328,91120.0,91111.0,0.00822215]
[1745354502906,0.001,91120.0,91111.0,0.00822215]
[1745354503325,0.00303328,91120.0,91111.0,0.00822215]
[1745354503896,0.001,91120.0,91111.0,0.00822215]
[1745354512033,0.0497,91119.0,91111.0,0.00822215]
[1745354512837,0.0497,91119.0,91111.0,0.00522215]
[1745354512994,0.0497,91119.0,91111.0,0.00022215]
[1745354513189,0.0507,91119.0,91111.0,0.00922215]
[1745354518171,0.0497,91119.0,91111.0,0.00322215]
[1745354518407,0.0497,91119.0,91111.0,0.00022215]
[1745354518773,0.0497,91119.0,91111.0,0.00222215]
[1745354519027,0.0507,91119.0,91111.0,0.00722215]
[1745354519388,0.0497,91119.0,91111.0,0.00222215]
[1745354519599,0.0475,91118.0,91111.0,0.00222215]
[1745354521174,0.0475,91118.0,91111.0,0.00722215]
[1745354521585,0.0475,91118.0,91111.0,0.00022215]
[1745354521947,0.0485,91118.0,91111.0,0.00722215]
[1745354523105,0.11578922,91117.0,91111.0,0.00722215]
[1745354523306,0.0496,91116.0,91111.0,0.00722215]
[1745354523539,0.11578922,91115.0,91111.0,0.00722215]
[1745354524128,0.11578922,91115.0,91111.0,0.00222215]
[1745354524291,0.11578922,91115.0,91111.0,0.00522215]
[1745354524496,0.11578922,91115.0,91111.0,0.00322215]
[1745354524739,0.0496,91114.0,91111.0,0.00322215]
[1745354525086,0.16488922,91113.0,91111.0,0.00222215]
[1745354525652,0.16488922,91113.0,91111.0,0.00022215]
[1745354525856,0.16488922,91113.0,91111.0,0.00222215]
[1745354527585,0.16488922,91113.0,91111.0,0.00022215]
[1745354527794,0.16488922,91113.0,91111.0,0.00222215]
[1745354530077,0.09556,91118.0,91111.0,0.00222215]
[1745354530320,0.0491,91123.0,91111.0,0.00222215]
[1745354530513,0.1,91119.0,91113.0,0.25566334]
[1745354530689,0.1,91119.0,91111.0,0.00222215]
[1745354530894,0.1,91119.0,91111.0,0.00022215]
[1745354531104,0.1,91119.0,91111.0,0.00222215]
[1745354531338,0.0987,91117.0,91111.0,0.00222215]
[1745354531541,0.11578922,91116.0,91111.0,0.00022215]
[1745354531943,0.11578922,91116.0,91111.0,0.00222215]
[1745354532360,0.11578922,91116.0,91111.0,0.00022215]
[1745354533784,0.11578922,91116.0,91111.0,0.00222215]
[1745354553149,0.11375594,91116.0,91111.0,0.00222215]
[1745354553309,0.11578922,91116.0,91111.0,0.00222215]
[1745354558013,0.11578922,91116.0,91100.0,0.02155944]
[1745354558177,0.11578922,91116.0,91106.0,0.25566334]
[1745354559197,0.11678922,91116.0,91106.0,0.25566334]
[1745354560200,0.11578922,91116.0,91106.0,0.25666334]
[1745354561804,0.11678922,91116.0,91106.0,0.25866334]
[1745354562024,0.11678922,91116.0,91106.0,0.27374913]
[1745354566901,0.11678922,91116.0,91106.0,0.01808579]
[1745354578130,0.01454085,91115.0,91106.0,0.01808579]
[1745354578338,0.01454085,91109.0,91106.0,0.01808579]
[1745354578565,0.10644085,91107.0,91106.0,0.01808579]
[1745354578719,0.32019679,91107.0,91106.0,0.01808579]
[1745354578921,0.32019679,91107.0,91106.0,0.01508579]
[1745354579128,0.27369679,91107.0,91091.0,0.0004238]
[1745354579349,0.0919,91107.0,91106.0,0.004]
[1745354579591,0.20565594,91107.0,91106.0,0.004]
[1745354579793,0.2077021,91107.0,91106.0,0.001]
[1745354580489,0.2087021,91107.0,91106.0,0.001]
[1745354580886,0.2117021,91107.0,91106.0,0.001]
[1745354581457,0.0465,91102.0,91091.0,0.0004238]
[1745354581656,0.11578922,91101.0,91091.0,0.0004238]
[1745354581901,0.11578922,91101.0,91099.0,0.01416377]
[1745354582996,0.11678922,91101.0,91099.0,0.01516377]
[1745354587497,0.11475594,91101.0,91099.0,0.01516377]
[1745354587713,0.11678922,91101.0,91099.0,0.01516377]
[1745354589596,0.21218922,91101.0,91099.0,0.01516377]
[1745354590604,0.0454,91100.0,91099.0,0.01516377]
[1745354590815,0.25915594,91100.0,91099.0,0.01516377]
[1745354591209,0.25915594,91100.0,91099.0,0.01416377]
[1745354592149,0.26215594,91100.0,91099.0,0.01416377]
[1745354592358,0.26415594,91100.0,91099.0,0.01516377]
[1745354596819,0.21875594,91100.0,91099.0,0.01516377]
[1745354597035,0.22078922,91100.0,91099.0,0.01516377]
[1745354597428,0.22078922,91100.0,91090.0,0.25566334]
[1745354597669,0.1,91096.0,91090.0,0.25566334]
[1745354597807,0.11375594,91095.0,91090.0,0.25566334]
[1745354598399,0.11375594,91095.0,91090.0,0.25798039]
[1745354598594,0.11375594,91095.0,91090.0,0.25898039]
[1745354598783,0.11375594,91095.0,91090.0,0.01531705]
[1745354599175,0.11475594,91095.0,91090.0,0.01531705]
[1745354605175,0.00203328,91094.0,91090.0,0.01531705]
[1745354605441,0.11578922,91094.0,91090.0,0.01531705]
[1745354605673,0.11375594,91094.0,91090.0,0.01531705]
[1745354606846,0.11375594,91094.0,91085.0,0.25566334]
[1745354607067,0.11375594,91094.0,91090.0,0.001]
[1745354607444,0.11475594,91094.0,91090.0,0.01520172]
[1745354607660,0.11475594,91094.0,91090.0,0.001]
[1745354607864,0.11475594,91094.0,91084.0,0.000424]
[1745354608099,0.11575594,91094.0,91085.0,0.003]
[1745354608463,0.11375594,91094.0,91085.0,0.001]
[1745354608669,0.11475594,91094.0,91085.0,0.001]
[1745354608947,0.11475594,91094.0,91084.0,0.000424]
[1745354609825,0.11475594,91094.0,91090.0,0.001]
[1745354610229,0.11475594,91094.0,91084.0,0.000424]
[1745354610646,0.11575594,91094.0,91084.0,0.01725303]
[1745354610863,0.11575594,91094.0,91084.0,0.003424]
[1745354611083,0.11575594,91094.0,91084.0,0.01734585]
[1745354611289,0.11475594,91094.0,91084.0,0.003424]
[1745354611501,0.11475594,91094.0,91084.0,0.01853149]
[1745354611730,0.11475594,91094.0,91084.0,0.004424]
[1745354612598,0.11475594,91094.0,91084.0,0.01841617]
[1745354612814,0.11475594,91094.0,91084.0,0.004424]
[1745354613044,0.00203328,91093.0,91084.0,0.004424]
[1745354613255,0.00203328,91093.0,91084.0,0.01849071]
[1745354613849,0.00203328,91093.0,91084.0,0.01549071]
[1745354614313,0.00303328,91093.0,91084.0,0.01749071]
[1745354614550,0.00303328,91093.0,91084.0,0.01849071]
[1745354615942,0.001,91093.0,91084.0,0.01849071]
[1745354618864,0.00203328,91092.0,91084.0,0.01849071]
[1745354619066,0.00303328,91093.0,91084.0,0.01849071]
[1745354619882,0.00203328,91093.0,91084.0,0.01549071]
[1745354620316,0.001,91092.0,91084.0,0.01749071]
[1745354620763,0.00203328,91093.0,91084.0,0.01549071]
[1745354620936,0.00203328,91093.0,91084.0,0.01449071]
[1745354621144,0.00203328,91093.0,91084.0,0.01549071]
[1745354621546,0.00203328,91093.0,91084.0,0.01749071]
[1745354621754,0.00303328,91093.0,91084.0,0.01849071]
[1745354621912,0.00303328,91093.0,91084.0,0.01749071]
[1745354622322,0.00303328,91093.0,91084.0,0.01849071]
[1745354635277,0.0459,91090.0,91084.0,0.01849071]
[1745354635485,0.11578922,91089.0,91084.0,0.01849071]
[1745354635884,0.1,91087.0,91084.0,0.01849071]
[1745354636125,0.11578922,91086.0,91084.0,0.01449071]
[1745354636325,0.0459,91085.0,91084.0,0.01449071]
[1745354636531,0.0459,91085.0,91084.0,0.01749071]
[1745354636532,0.15965594,91085.0,91084.0,0.01749071]
[1745354636663,0.15965594,91085.0,91084.0,0.01649071]
[1745354637484,0.20685594,91085.0,91084.0,0.01649071]
[1745354637688,0.20685594,91085.0,91084.0,0.01449071]
[1745354638845,0.20785594,91085.0,91084.0,0.01449071]
[1745354643878,0.30785594,91085.0,91084.0,0.01449071]
[1745354644739,0.30685594,91085.0,91084.0,0.01449071]
[1745354644955,0.30885594,91085.0,91084.0,0.01549071]
[1745354645367,0.30585594,91085.0,91084.0,0.01449071]
[1745354645573,0.30785594,91085.0,91084.0,0.01449071]
[1745354645773,0.30785594,91085.0,91084.0,0.01549071]
[1745354645774,0.30985594,91085.0,91084.0,0.01549071]
[1745354647247,0.40313594,91085.0,91084.0,0.01449071]
[1745354647457,0.40513594,91085.0,91084.0,0.01549071]
[1745354648075,0.40313594,91085.0,91084.0,0.01449071]
[1745354648288,0.40313594,91085.0,91084.0,0.01549071]
[1745354648691,0.40613594,91085.0,91084.0,0.01549071]
[1745354651848,0.42167679,91085.0,91084.0,0.01549071]
[1745354652051,0.42167679,91085.0,91084.0,0.001424]
[1745354652971,0.41967679,91085.0,91084.0,0.000424]
[1745354653454,0.42267679,91085.0,91084.0,0.001424]
[1745354653887,0.41967679,91085.0,91084.0,0.000424]
[1745354654098,0.42267679,91085.0,91084.0,0.000424]
[1745354654414,0.41967679,91085.0,91084.0,0.000424]
[1745354654619,0.42267679,91085.0,91084.0,0.000424]
[1745354654846,0.43105834,91085.0,91084.0,0.000424]
[1745354656000,0.45620435,91085.0,91084.0,0.000424]
[1745354656616,0.43105834,91085.0,91084.0,0.000424]
[1745354660541,0.42805834,91085.0,91084.0,0.000424]
[1745354660903,0.43205834,91085.0,91084.0,0.000424]
[1745354661313,0.42805834,91085.0,91084.0,0.000424]
[1745354661529,0.42505834,91085.0,91084.0,0.000424]
[1745354661940,0.42805834,91085.0,91084.0,0.000424]
[1745354663934,0.36027594,91085.0,91084.0,0.000424]
[1745354664236,0.36527594,91085.0,91084.0,0.000424]
[1745354664748,0.31507594,91085.0,91084.0,0.000424]
[1745354665097,0.31907594,91085.0,91084.0,0.000424]
[1745354665504,0.31407594,91085.0,91084.0,0.000424]
[1745354665884,0.31907594,91085.0,91084.0,0.000424]
[1745354666963,0.09933191,91085.0,91084.0,0.00141209]
[1745354667500,0.10333191,91085.0,91084.0,0.00141209]
[1745354667665,0.09933191,91085.0,91084.0,0.00141209]
[1745354668029,0.10233191,91085.0,91084.0,0.00141209]
[1745354668650,0.09833191,91085.0,91084.0,0.00241209]
[1745354668869,0.09933191,91085.0,91084.0,0.00441209]
[1745354669286,0.09933191,91085.0,91084.0,0.00241209]
[1745354669287,0.09833191,91085.0,91084.0,0.00241209]
[1745354669899,0.09933191,91085.0,91084.0,0.00441209]
[1745354670840,0.09932,91085.0,91084.0,0.003424]
[1745354671131,0.09932,91085.0,91084.0,0.00441209]
[1745354671383,0.09632,91085.0,91084.0,0.00341209]
[1745354671562,0.09532,91085.0,91084.0,0.00241209]
[1745354671783,0.09532,91085.0,91084.0,0.00441209]
[1745354672097,0.09632,91085.0,91084.0,0.00441209]
[1745354673622,0.001,91085.0,91084.0,0.00441209]
[1745354680533,0.09524,91093.0,91084.0,0.00441209]
[1745354680534,0.09524,91093.0,91084.0,0.00241209]
[1745354680773,0.001,91085.0,91084.0,0.00241209]
[1745354680978,0.001,91085.0,91084.0,0.05201209]
[1745354681184,0.09524,91098.0,91084.0,0.05520764]
[1745354681404,0.09524,91098.0,91084.0,0.27258855]
[1745354681405,0.1,91090.0,91084.0,0.27258855]
[1745354681588,0.09524,91098.0,91086.0,0.21957062]
[1745354681835,0.09524,91113.0,91090.0,0.01097815]
[1745354682023,0.0462,91119.0,91097.0,0.51189404]
[1745354682024,0.1,91103.0,91097.0,0.51189404]
[1745354682574,0.00203328,91118.0,91098.0,0.04719528]
[1745354682761,0.1,91103.0,91098.0,0.045]
[1745354683225,0.09665753,91103.0,91099.0,0.04929515]
[1745354683435,0.09665753,91103.0,91099.0,0.0471]
[1745354683436,0.1,91103.0,91099.0,0.0471]
[1745354683650,4.62e-05,91119.0,91099.0,0.0471]
[1745354683863,4.62e-05,91119.0,91109.0,0.25594702]
[1745354684753,0.0010462,91119.0,91109.0,0.25594702]
[1745354685355,4.62e-05,91119.0,91109.0,0.39070277]
[1745354685559,0.0010462,91119.0,91109.0,0.39370277]
[1745354685993,0.0010462,91119.0,91109.0,0.39470277]
[1745354687312,0.1000462,91119.0,91109.0,0.39170277]
[1745354687523,0.1000462,91119.0,91109.0,0.39370277]
[1745354687760,0.1000462,91119.0,91109.0,0.39170277]
[1745354687986,0.1000462,91119.0,91109.0,0.39070277]
[1745354688417,0.1000462,91119.0,91109.0,0.39170277]
[1745354689543,0.1000462,91119.0,91109.0,0.78140554]
[1745354690197,0.1000462,91119.0,91111.0,0.0471]
[1745354690418,4.62e-05,91119.0,91112.0,0.00219474]
[1745354691080,4.62e-05,91119.0,91112.0,0.22170417]
[1745354691288,0.0010462,91119.0,91112.0,0.22170417]
[1745354691740,0.0010462,91119.0,91112.0,0.00419474]
[1745354691953,4.62e-05,91119.0,91112.0,0.00419474]
[1745354692165,4.62e-05,91119.0,91112.0,0.006]
[1745354697279,4.62e-05,91119.0,91112.0,0.003]
[1745354697485,4.62e-05,91119.0,91111.0,0.0471]
[1745354697927,4.62e-05,91119.0,91112.0,0.002]
[1745354698170,4.62e-05,91119.0,91112.0,0.004]
[1745354698586,4.62e-05,91119.0,91110.0,0.2195142]
[1745354698780,4.62e-05,91119.0,91111.0,0.002]
[1745354699814,4.62e-05,91119.0,91111.0,0.005]
[1745354699981,4.62e-05,91119.0,91111.0,0.003]
[1745354700186,4.62e-05,91119.0,91111.0,0.22251219]
[1745354700438,4.62e-05,91119.0,91112.0,0.002]
[1745354700794,4.62e-05,91119.0,91113.0,0.21950619]
[1745354702249,4.62e-05,91119.0,91114.0,0.21950431]
[1745354702598,4.62e-05,91119.0,91112.0,0.002]
[1745354703252,4.62e-05,91119.0,91113.0,0.001]
[1745354703455,4.62e-05,91119.0,91114.0,0.21950523]
[1745354703652,4.62e-05,91119.0,91112.0,0.21950787]
[1745354703862,4.62e-05,91119.0,91113.0,0.22370144]
[1745354704076,4.62e-05,91119.0,91113.0,0.22150762]
[1745354704446,4.62e-05,91119.0,91113.0,0.001]
[1745354704653,4.62e-05,91119.0,91114.0,0.002]
[1745354705118,4.62e-05,91119.0,91113.0,0.002]
[1745354705488,4.62e-05,91119.0,91113.0,0.004]
[1745354706361,4.62e-05,91119.0,91114.0,0.00219485]
[1745354706566,4.62e-05,91119.0,91114.0,0.00219481]
[1745354706832,4.62e-05,91119.0,91115.0,0.21950282]
[1745354707071,0.050748,91127.0,91113.0,0.01297538]
[1745354707262,0.1,91126.0,91118.0,0.21949506]
[1745354707405,0.1,91126.0,91117.0,0.51140708]
[1745354707605,0.1,91126.0,91117.0,0.25242293]
[1745354707834,0.1,91126.0,91116.0,0.51140708]
[1745354708046,0.1,91126.0,91117.0,0.0021947]
[1745354708256,0.1,91126.0,91117.0,0.2216911]
[1745354708655,0.1,91126.0,91117.0,0.0021947]
[1745354709032,0.1,91126.0,91116.0,0.51140708]
[1745354710114,0.1,91126.0,91116.0,0.51240708]
[1745354712186,0.1,91126.0,91116.0,0.00198809]
[1745354712187,0.0468,91124.0,91116.0,0.00198809]
[1745354712417,0.12829679,91117.0,91116.0,0.00198809]
[1745354712638,0.21950523,91114.0,91084.0,0.000424]
[1745354712855,0.22039679,91098.0,91097.0,0.00146297]
[1745354713062,0.41755007,91098.0,91097.0,0.00146297]
[1745354713347,0.41551679,91098.0,91097.0,0.00146297]
[1745354714407,0.41551679,91098.0,91081.0,0.005]
[1745354714408,0.01454085,91095.0,91082.0,0.01718597]
[1745354714628,0.1,91087.0,91081.0,0.005]
[1745354714841,0.0453,91085.0,91081.0,0.005]
[1745354715047,0.11578922,91084.0,91081.0,0.005]
[1745354716868,0.11375594,91084.0,91081.0,0.005]
[1745354717088,0.00203328,91083.0,91081.0,0.005]
[1745354717271,0.11375594,91082.0,91081.0,0.005]
[1745354717535,0.11375594,91082.0,91081.0,0.0212429]
[1745354719535,0.20891594,91082.0,91081.0,0.0212429]
[1745354719970,0.21094922,91082.0,91081.0,0.0212429]
[1745354720607,0.20991594,91082.0,91081.0,0.0212429]
[1745354733629,0.20991594,91082.0,91081.0,0.0202429]
[1745354735944,0.20891594,91082.0,91081.0,0.0202429]
[1745354736384,0.20991594,91082.0,91081.0,0.0202429]
[1745354737305,0.25731594,91082.0,91081.0,0.0202429]
[1745354737923,0.25631594,91082.0,91081.0,0.0202429]
[1745354738348,0.25831594,91082.0,91081.0,0.0202429]
[1745354738716,0.25731594,91082.0,91081.0,0.0202429]
[1745354738912,0.25831594,91082.0,91081.0,0.0202429]
[1745354740281,0.25731594,91082.0,91081.0,0.0202429]
[1745354740485,0.25831594,91082.0,91081.0,0.0202429]
[1745354742271,0.25831594,91082.0,91081.0,0.01968776]
[1745354746300,0.16315594,91082.0,91081.0,0.01968776]
[1745354746503,0.26030922,91082.0,91081.0,0.01968776]
[1745354746709,0.25827594,91082.0,91081.0,0.01968776]
[1745354751501,0.21087594,91082.0,91081.0,0.01968776]
[1745354757095,0.11575594,91082.0,91081.0,0.01968776]
[1745354757475,0.59712,91082.0,91081.0,0.01968776]
[1745354757615,0.502,91082.0,91081.0,0.01968776]
[1745354761076,0.501,91082.0,91081.0,0.01968776]